Body Name,Body,Service Level,Expense Type,Expense Code,Narrative,Date,Transaction Number,Amount,Capital and Revenue,Supplier Name,Supplier ID
South Ribble Council,http://statistics.data.gov.uk/doc/local-authority/30UN,Area 2 - Waste Transport/Eastern & Central Teams,External Contractors Charges,4570,SPEC REPAIR - JFC6534 - TMR02A3 - BO,22/04/2016,0000413488,288.83,Revenue,A C HYDRAULIC & PNEUMATIC SERVICES LTD,00093062
South Ribble Council,http://statistics.data.gov.uk/doc/local-authority/30UN,Housing,Cap Grant- Improve Grants,C570,DFG WORKS FOR BATHROOM AT ADDRESS REDACTED 50%,22/04/2016,0000413467,"2,288.00",Revenue,ABBI PROPERTY SERVICES LTD,131357
South Ribble Council,http://statistics.data.gov.uk/doc/local-authority/30UN,Regeneration,Other Misc,4861,Wristbands - Live events 2016  1665.00 for Penwortham and Longton Live,20/04/2016,0000413152,832.00,Revenue,AINSWORTH & PARKINSON,130107
South Ribble Council,http://statistics.data.gov.uk/doc/local-authority/30UN,Regeneration,Other Misc,4861,Wrist bands - Live events 2016,20/04/2016,0000413152,833.00,Revenue,AINSWORTH & PARKINSON,130107
South Ribble Council,http://statistics.data.gov.uk/doc/local-authority/30UN,Revenues Plus,Financial,4811,post office trans,06/04/2016,0000412538,745.03,Revenue,ALLPAY LTD,00122276
South Ribble Council,http://statistics.data.gov.uk/doc/local-authority/30UN,Revenues Plus,Financial,4811,paypoint,06/04/2016,0000412538,125.99,Revenue,ALLPAY LTD,00122276
South Ribble Council,http://statistics.data.gov.uk/doc/local-authority/30UN,Revenues Plus,Financial,4811,webconnect,06/04/2016,0000412538,46.00,Revenue,ALLPAY LTD,00122276
South Ribble Council,http://statistics.data.gov.uk/doc/local-authority/30UN,Regeneration,Other Misc,4852,Printing of poster for Walmer Bridge Beer and Banger Festival event: 1000 x A4 ,29/04/2016,0000418274,335.00,Revenue,AMJ LTD (THE STATIONERY STORE),00096946
South Ribble Council,http://statistics.data.gov.uk/doc/local-authority/30UN,Regeneration,Other Misc,4852,Printing of poster for Penwortham Open Gardens (POG) and Penwortham Autumn ,29/04/2016,0000418275,556.00,Revenue,AMJ LTD (THE STATIONERY STORE),00096946
South Ribble Council,http://statistics.data.gov.uk/doc/local-authority/30UN,Regeneration,Other Misc,4852,"Printing of 5000 x A5 Penwortham in Bloom Flyers, 5000 x A5 Leyland in Bloom ",29/04/2016,0000418276,450.00,Revenue,AMJ LTD (THE STATIONERY STORE),00096946
South Ribble Council,http://statistics.data.gov.uk/doc/local-authority/30UN,Regeneration,Other Misc,4852,printing sample,29/04/2016,0000418276,450.00,Revenue,AMJ LTD (THE STATIONERY STORE),00096946
South Ribble Council,http://statistics.data.gov.uk/doc/local-authority/30UN,Regeneration,Other Misc,4851,Consultancy,15/04/2016,0000407585,"2,000.00",Revenue,ARMSTRONG CONSULTING,131444
South Ribble Council,http://statistics.data.gov.uk/doc/local-authority/30UN,Regeneration,Other Misc,4851,NWCASHN Funded Project - Colocation Consultancy  Fee for April 2016,22/04/2016,0000413472,"2,000.00",Revenue,ARMSTRONG CONSULTING,131444
South Ribble Council,http://statistics.data.gov.uk/doc/local-authority/30UN,Property Services,Rep & Maint Premises,2020,supply and fit new Euro 60 motor to the roller shutter door loading bay at Civic Centre,20/04/2016,0000413259,295.00,Revenue,AVALON DOORS & AWNINGS LTD,131051
South Ribble Council,http://statistics.data.gov.uk/doc/local-authority/30UN,Area 3 - Parks/Leyland East West,Materials General,4046,20 x assorted broad leaf trees 1000 x whips,22/04/2016,0000413478,856.00,Revenue,BANNISTER HALL LANDSCAPE SUPPLIES,00117786
South Ribble Council,http://statistics.data.gov.uk/doc/local-authority/30UN,Property Services,Rep & Maint Premises,2020,supply and install 2 ceiling mounted heaters in the kitchen dining area  Civic Centre,20/04/2016,0000413416,"1,319.12",Revenue,BELEC ELECTRICAL LTD,130290
South Ribble Council,http://statistics.data.gov.uk/doc/local-authority/30UN,Property Services,Rep & Maint Premises,2020,Supply and install 2 over sink water heater 1 x Herne Ave toilets 1 x Withy Grove toilet,29/04/2016,0000418217,422.19,Revenue,BELEC ELECTRICAL LTD,130290
South Ribble Council,http://statistics.data.gov.uk/doc/local-authority/30UN,Healthy Communities,Sports Dev Expenses,4894,"6 x Rubber Foam Bat and Ball Set SE4740-6  @ 29.45 each = 176.70 10 ",20/04/2016,0000412869,584.65,Revenue,Bishop Sports & Leisure Ltd,131843
South Ribble Council,http://statistics.data.gov.uk/doc/local-authority/30UN,Shared Financial Services,Professional Fees,4510,consultation,29/04/2016,0000412858,285.36,Revenue,Blackpool Council,131818
South Ribble Council,http://statistics.data.gov.uk/doc/local-authority/30UN,Property Services,Rep & Maint Premises,2020,Please produce drawing per instructions re 2nd floor,29/04/2016,0000418314,355.40,Revenue,BRAMLEY-PATE & PARTNERS,00093091
South Ribble Council,http://statistics.data.gov.uk/doc/local-authority/30UN,Property Services,Rep & Maint Premises,2020,credit to cancel,29/04/2016,0000413477,688.53,Revenue,BRITISH GAS SERVICES (COMMERCIAL) LTD,00016214
South Ribble Council,http://statistics.data.gov.uk/doc/local-authority/30UN,Property Services,Rep & Maint Premises,2020,Annual contract 2016 / 2017 for care plan ADDRESS REDACTED,29/04/2016,0000418219,306.25,Revenue,BRITISH GAS SERVICES (COMMERCIAL) LTD,00016214
South Ribble Council,http://statistics.data.gov.uk/doc/local-authority/30UN,Healthy Communities,Other Misc,4851,Payment for delivery of;NAME REDACTED for Dance Coaching for the Active School,06/04/2016,0000412388,"2,400.00",Revenue,BROWNEDGE ST MARYS R C HIGH SCHOOL,00015707
South Ribble Council,http://statistics.data.gov.uk/doc/local-authority/30UN,Healthy Communities,Other Misc,4851,Payment for delivery of:NAME REDACTED Tennis coaching `Active School` Coaching,20/04/2016,0000412870,500.00,Revenue,BROWNEDGE ST MARYS R C HIGH SCHOOL,00015707
South Ribble Council,http://statistics.data.gov.uk/doc/local-authority/30UN,Healthy Communities,Other Misc,4851,Payment for the delivery of: NAME REDACTED Tennis coaching `Active School` ,20/04/2016,0000412871,550.00,Revenue,BROWNEDGE ST MARYS R C HIGH SCHOOL,00015707
South Ribble Council,http://statistics.data.gov.uk/doc/local-authority/30UN,Healthy Communities,Other Misc,4851,Payment for the delivery of: NAME REDACTED Tennis coaching `Active School` ,20/04/2016,0000412872,630.00,Revenue,BROWNEDGE ST MARYS R C HIGH SCHOOL,00015707
South Ribble Council,http://statistics.data.gov.uk/doc/local-authority/30UN,Healthy Communities,Other Misc,4851,1 x Upright Lockable Storage Trolley,22/04/2016,0000407573,437.00,Revenue,BROXAP LTD,00028736
South Ribble Council,http://statistics.data.gov.uk/doc/local-authority/30UN,Information Services,Peripherals,4248,Remote Access Maintenance for period 01/04/16 - 31/03/17,06/04/2016,0000412769,"2,125.84",Revenue,CAPITA BUSINESS SERVICES LTD,00122179
South Ribble Council,http://statistics.data.gov.uk/doc/local-authority/30UN,Environmental Health,Licence Fees,488B,Licence Fees,13/04/2016,0000412854,"1,125.00",Revenue,Carr Street Community Centre,130312
South Ribble Council,http://statistics.data.gov.uk/doc/local-authority/30UN,Revenues Plus,Agency Fees,1121,NAME REDACTED Job share 2015/16,06/04/2016,0000412473,"18,819.13",Revenue,CHORLEY BOROUGH COUNCIL,00017352
South Ribble Council,http://statistics.data.gov.uk/doc/local-authority/30UN,Legal,Publications,4142,Annual Payment for Lexis Nexis - 2015/16,06/04/2016,0000412474,"5,948.00",Revenue,CHORLEY BOROUGH COUNCIL,00017352
South Ribble Council,http://statistics.data.gov.uk/doc/local-authority/30UN,Area 2 - Waste Transport/Eastern & Central Teams,External Contractors Charges,4570,Refuse Collection Buckshaw Village 2015-16,22/04/2016,0000413387,"47,813.00",Revenue,CHORLEY BOROUGH COUNCIL,00017352
South Ribble Council,http://statistics.data.gov.uk/doc/local-authority/30UN,Homelessness,Contributions,4730,"NAME REDACTED Cotswold House14/3/2016 - 31/3/2016 18 days x  35.284/day ",29/04/2016,0000418270,635.04,Revenue,CHORLEY BOROUGH COUNCIL,00017352
South Ribble Council,http://statistics.data.gov.uk/doc/local-authority/30UN,Homelessness,Contributions,4730,"NAME REDACTED Cotswold House14/3/2016 - 31/3/2016 18 days x  35.284/day ",29/04/2016,0000418271,352.80,Revenue,CHORLEY BOROUGH COUNCIL,00017352
South Ribble Council,http://statistics.data.gov.uk/doc/local-authority/30UN,Homelessness,Contributions,4730,"block book Cotswold HouseApril 2016 x 30 days x  35.288",29/04/2016,0000418272,"1,058.40",Revenue,CHORLEY BOROUGH COUNCIL,00017352
South Ribble Council,http://statistics.data.gov.uk/doc/local-authority/30UN,Property Services,Rep & Maint Fixed Plant,2035,Please attend Worden park to repair the alarm in the Derby wing,27/04/2016,0000413493,297.75,Revenue,CHUBB ELECTRONIC SECURITY SYSTEMS LTD,00090625
South Ribble Council,http://statistics.data.gov.uk/doc/local-authority/30UN,Area 2 - Waste Transport/Eastern & Central Teams,External Contractors Charges,4570,Spec Repair PJ62 UCL JFC6413,20/04/2016,0000412758,"1,406.48",Revenue,CICELEY COMMERCIALS LTD,00059381
South Ribble Council,http://statistics.data.gov.uk/doc/local-authority/30UN,Revenues Plus,Peripherals,4242,ICON Hosting - IPR Software - 0300 - on Go Live 30/9/16,22/04/2016,0000413248,"1,041.66",Revenue,CIVICA UK LTD,00102717
South Ribble Council,http://statistics.data.gov.uk/doc/local-authority/30UN,Regeneration,Capital Expenditure,C234,Plant and man hire,27/04/2016,0000413285,328.00,Revenue,CLIVE HURT (PLANT HIRE) LTD,00023553
South Ribble Council,http://statistics.data.gov.uk/doc/local-authority/30UN,Regeneration,Capital Expenditure,C234,Plant and man hire,27/04/2016,0000413286,814.12,Revenue,CLIVE HURT (PLANT HIRE) LTD,00023553
South Ribble Council,http://statistics.data.gov.uk/doc/local-authority/30UN,Information Services,Peripherals,4247,Multimedia Headphones with microphone,22/04/2016,0000413481,28.67,Revenue,COMBINED PRECISION COMPONENTS PLC,00017954
South Ribble Council,http://statistics.data.gov.uk/doc/local-authority/30UN,Information Services,Peripherals,4247,Digital Camera,22/04/2016,0000413481,47.65,Revenue,COMBINED PRECISION COMPONENTS PLC,00017954
South Ribble Council,http://statistics.data.gov.uk/doc/local-authority/30UN,Information Services,Peripherals,4247,Batteries; screwdriver set; various leads; caddies; connectors,22/04/2016,0000413481,187.22,Revenue,COMBINED PRECISION COMPONENTS PLC,00017954
South Ribble Council,http://statistics.data.gov.uk/doc/local-authority/30UN,HR & Communications,Balance Sheet,0030,CHILDCARE VOUCHERS APRIL 2016,15/04/2016,0000413148,"3,018.02",Revenue,COMPUTERSHARE VOUCHER SERVICES,00116499
South Ribble Council,http://statistics.data.gov.uk/doc/local-authority/30UN,Revenues Plus,Stationery,4130,Annual Billing 2016,06/04/2016,0000412479,"5,400.93",Revenue,CRITIQOM,131053
South Ribble Council,http://statistics.data.gov.uk/doc/local-authority/30UN,Revenues Plus,Postage,4291,Annual Billing 2016,06/04/2016,0000412480,"12,705.18",Revenue,CRITIQOM,131053
South Ribble Council,http://statistics.data.gov.uk/doc/local-authority/30UN,Healthy Communities,Other Misc,4861,"200 Turkey Barm Cakes 200 MInce Pies@ 4.20 per head To be delivered to Leyland ",27/04/2016,0000412395,840.00,Revenue,CROFT BAKERY,00116619
South Ribble Council,http://statistics.data.gov.uk/doc/local-authority/30UN,Housing,Cap Grant- Improve Grants,C570,DFG Works to bathroom at ADDRESS REDACTED,13/04/2016,0000412874,"6,883.00",Revenue,Croston Plumbing & Heating Ltd,131545
South Ribble Council,http://statistics.data.gov.uk/doc/local-authority/30UN,HR & Communications,Training Expense-Course Fees,1408,PLEASE ORDER A FULL BIKE PACKAGE FOR ADDRESS REDACTED,13/04/2016,0000412811,530.00,Revenue,CYCLESCHEME CO  UK,130237
South Ribble Council,http://statistics.data.gov.uk/doc/local-authority/30UN,HR & Communications,Training Expense-Course Fees,1408,helmets,13/04/2016,0000412811,34.99,Revenue,CYCLESCHEME CO  UK,130237
South Ribble Council,http://statistics.data.gov.uk/doc/local-authority/30UN,Property Services,Rep & Maint Premises,2020,To carry out work on 1 x Crankcase heaters and labour. Model McSmart 240 CR serial,27/04/2016,0000413527,425.00,Revenue,DAIKIN APPLIED SERVICE,130324
South Ribble Council,http://statistics.data.gov.uk/doc/local-authority/30UN,Housing,Cap Grant- Improve Grants,C570,Cost of materials for DFG wetroom to be constructed for ADDRESS REDACTED,15/04/2016,0000412770,833.04,Revenue,NAME REDACTED,131941
South Ribble Council,http://statistics.data.gov.uk/doc/local-authority/30UN,Area 2 - Waste Transport/Eastern & Central Teams,External Contractors Charges,4570,SPEC REPAIR - VK09 AHJ - JFC6446 - AW,13/04/2016,0000412541,"2,626.61",Revenue,DENNIS EAGLE LTD,00019774
South Ribble Council,http://statistics.data.gov.uk/doc/local-authority/30UN,Area 2 - Waste Transport/Eastern & Central Teams,External Contractors Charges,4570,"1 spec repair, VN10 DKL, JFC6410. NAME REDACTED",13/04/2016,0000412824,250.67,Revenue,DENNIS EAGLE LTD,00019774
South Ribble Council,http://statistics.data.gov.uk/doc/local-authority/30UN,Area 2 - Waste Transport/Eastern & Central Teams,Materials General,4040,1 ABS UNIT - VN10 DKL - JFC6585 - AW,13/04/2016,0000412876,413.37,Revenue,DENNIS EAGLE LTD,00019774
South Ribble Council,http://statistics.data.gov.uk/doc/local-authority/30UN,Area 2 - Waste Transport/Eastern & Central Teams,Materials General,4040,1 WHEEL BEARING - VN10 DKV - JFC6513 - AW,15/04/2016,0000413147,732.06,Revenue,DENNIS EAGLE LTD,00019774
South Ribble Council,http://statistics.data.gov.uk/doc/local-authority/30UN,Area 2 - Waste Transport/Eastern & Central Teams,External Contractors Charges,4570,SPEC REPAIR - VN10 DKV - JFC6541 - PD,22/04/2016,0000413249,"4,270.46",Revenue,DENNIS EAGLE LTD,00019774
South Ribble Council,http://statistics.data.gov.uk/doc/local-authority/30UN,Area 2 - Waste Transport/Eastern & Central Teams,Materials General,4040,"1 RAM, 2 PINS - VN10 DKL - JFC6660 - GA",22/04/2016,0000413471,583.62,Revenue,DENNIS EAGLE LTD,00019774
South Ribble Council,http://statistics.data.gov.uk/doc/local-authority/30UN,Shared Financial Services,Other Misc,4851,Other Misc,22/04/2016,0000412761,"110,023.00",Revenue,Department for Communities and Local Government,131500
South Ribble Council,http://statistics.data.gov.uk/doc/local-authority/30UN,Property Services,Rep & Maint Premises,2020,carry out work at the Civic Centre as per your service quotation ref Q-00023706,22/04/2016,0000400553,312.60,Revenue,DORMA UK LTD,00103305
South Ribble Council,http://statistics.data.gov.uk/doc/local-authority/30UN,Property Services,Professional Fees,4510,carry out a District Property  Portfolio review. In conjunction with NAME REDACTED,15/04/2016,0000413153,"5,000.00",Revenue,DTZ Debenham Tie Leung Ltd,131945
South Ribble Council,http://statistics.data.gov.uk/doc/local-authority/30UN,Information Services,Peripherals,4260,Peripherals,13/04/2016,0000412849,"2,104.38",Revenue,EE Ltd,131653
South Ribble Council,http://statistics.data.gov.uk/doc/local-authority/30UN,Information Services,Peripherals,4260,took credit in error,22/04/2016,0000413476,252.00,Revenue,EE Ltd,131653
South Ribble Council,http://statistics.data.gov.uk/doc/local-authority/30UN,HR & Communications,Training Expense-Course Fees,1408,PILATES CLASSES TO BE HELD 1.4.16 - 31.3.17,13/04/2016,0000412814,750.00,Revenue,NAME REDACTED,130917
South Ribble Council,http://statistics.data.gov.uk/doc/local-authority/30UN,Property Services,Rep & Maint Premises,2020,To place an advert for `Notice of Sale of Public Open Space` in the Leyland Guardian ,22/04/2016,0000413496,350.00,Revenue,ENVIROSTATE LTD,130827
South Ribble Council,http://statistics.data.gov.uk/doc/local-authority/30UN,Democratic Services,Other Misc,4424,Hire of 85 - 6ft x 2ft 6`` trestle tables to be delivered to:ADDRESS REDACTED ,29/04/2016,0000413497,515.75,Revenue,ev-ent Hire,131954
South Ribble Council,http://statistics.data.gov.uk/doc/local-authority/30UN,Development Enterprise & Comm Mgnt,Other Misc,4851,"Supervising: Booking stalls, Activites, Entertainment, Website & Social Media ",27/04/2016,0000413498,"2,000.00",Revenue,EVENTS LIVE,131362
South Ribble Council,http://statistics.data.gov.uk/doc/local-authority/30UN,Information Services,Peripherals,4248,"Experian Bank Wizard, contract. BW1070b / BW1069a for period 20/05/16 - 19/05/17",13/04/2016,0000413146,"3,708.15",Revenue,EXPERIAN LTD,00094045
South Ribble Council,http://statistics.data.gov.uk/doc/local-authority/30UN,Area 2 - Waste Transport/Eastern & Central Teams,Materials General,4040,"1 CUT OUT ROD, 1 CYLINDER - TMR03A2 - JFC6565 - BO",15/04/2016,0000412878,266.95,Revenue,F R SHARROCK LTD,00034539
South Ribble Council,http://statistics.data.gov.uk/doc/local-authority/30UN,Area 2 - Waste Transport/Eastern & Central Teams,External Contractors Charges,4570,ADDITIONAL CLINICAL WASTE COLLECTIONS 3.2.16 - 24.2.16,06/04/2016,0000412481,446.08,Revenue,FCC Environment Services (UK) Ltd,131612
South Ribble Council,http://statistics.data.gov.uk/doc/local-authority/30UN,Area 2 - Waste Transport/Eastern & Central Teams,External Contractors Charges,4570,Residual Waste - MARCH 2016,13/04/2016,0000412815,"39,047.04",Revenue,FCC Environment Services (UK) Ltd,131612
South Ribble Council,http://statistics.data.gov.uk/doc/local-authority/30UN,Area 2 - Waste Transport/Eastern & Central Teams,External Contractors Charges,4570,Dry Recyclable (Non Terraced) MARCH 2016,13/04/2016,0000412815,"40,023.51",Revenue,FCC Environment Services (UK) Ltd,131612
South Ribble Council,http://statistics.data.gov.uk/doc/local-authority/30UN,Area 2 - Waste Transport/Eastern & Central Teams,External Contractors Charges,4570,Dry Recyclable ( Terraced) MARCH 2016,13/04/2016,0000412815,"1,974.32",Revenue,FCC Environment Services (UK) Ltd,131612
South Ribble Council,http://statistics.data.gov.uk/doc/local-authority/30UN,Area 2 - Waste Transport/Eastern & Central Teams,External Contractors Charges,4570,Organic Waste (Non Terraced) - MARCH 2016,13/04/2016,0000412815,"27,265.30",Revenue,FCC Environment Services (UK) Ltd,131612
South Ribble Council,http://statistics.data.gov.uk/doc/local-authority/30UN,Area 2 - Waste Transport/Eastern & Central Teams,External Contractors Charges,4570,Organic Waste (Terraced) MARCH 2016,13/04/2016,0000412815,"5,755.43",Revenue,FCC Environment Services (UK) Ltd,131612
South Ribble Council,http://statistics.data.gov.uk/doc/local-authority/30UN,Area 2 - Waste Transport/Eastern & Central Teams,External Contractors Charges,4570,Schedule 2 Properties - MARCH 2016,13/04/2016,0000412815,"1,648.72",Revenue,FCC Environment Services (UK) Ltd,131612
South Ribble Council,http://statistics.data.gov.uk/doc/local-authority/30UN,Area 2 - Waste Transport/Eastern & Central Teams,External Contractors Charges,4570,Commercial Waste - MARCH 2016,13/04/2016,0000412815,"6,456.38",Revenue,FCC Environment Services (UK) Ltd,131612
South Ribble Council,http://statistics.data.gov.uk/doc/local-authority/30UN,Area 2 - Waste Transport/Eastern & Central Teams,External Contractors Charges,4570,Bulky Waste - MARCH 2016,13/04/2016,0000412815,892.77,Revenue,FCC Environment Services (UK) Ltd,131612
South Ribble Council,http://statistics.data.gov.uk/doc/local-authority/30UN,Area 2 - Waste Transport/Eastern & Central Teams,External Contractors Charges,4570,WEEE Collections MARCH 2016,13/04/2016,0000412815,333.91,Revenue,FCC Environment Services (UK) Ltd,131612
South Ribble Council,http://statistics.data.gov.uk/doc/local-authority/30UN,Area 2 - Waste Transport/Eastern & Central Teams,External Contractors Charges,4570,Clinical Waste - MARCH 2016,13/04/2016,0000412815,568.66,Revenue,FCC Environment Services (UK) Ltd,131612
South Ribble Council,http://statistics.data.gov.uk/doc/local-authority/30UN,Area 2 - Waste Transport/Eastern & Central Teams,External Contractors Charges,4570,Replacement Bins MARCH 2016,13/04/2016,0000412815,"5,000.00",Revenue,FCC Environment Services (UK) Ltd,131612
South Ribble Council,http://statistics.data.gov.uk/doc/local-authority/30UN,Area 2 - Waste Transport/Eastern & Central Teams,Balance Sheet,0031,retention,13/04/2016,0000412815,"-2,447.37",Revenue,FCC Environment Services (UK) Ltd,131612
South Ribble Council,http://statistics.data.gov.uk/doc/local-authority/30UN,Area 2 - Waste Transport/Eastern & Central Teams,Balance Sheet,0031,retention,13/04/2016,0000412815,"-3,750.93",Revenue,FCC Environment Services (UK) Ltd,131612
South Ribble Council,http://statistics.data.gov.uk/doc/local-authority/30UN,Area 2 - Waste Transport/Eastern & Central Teams,External Contractors Charges,4570,Additional Clinical Waste Collections 2.3.16 - 30.3.16,13/04/2016,0000413135,524.51,Revenue,FCC Environment Services (UK) Ltd,131612
South Ribble Council,http://statistics.data.gov.uk/doc/local-authority/30UN,HR & Communications,Training Expense-Course Fees,1403,FERRET SOFTWARE TRAINING 2016 FOR STRATEGIC HOUSING DEPARTMENT,22/04/2016,0000413197,310.00,Revenue,Ferret Information Systems Ltd,131107
South Ribble Council,http://statistics.data.gov.uk/doc/local-authority/30UN,Area 3 - Parks/Leyland East West,Operational Furniture & Equip,4010,2 X KOMBI 3 WITH KNIB (as per quotation no. BW01424 - CT022561) 612.90 each,22/04/2016,0000413480,"1,225.80",Revenue,Fleet Line Markers Limited,131942
South Ribble Council,http://statistics.data.gov.uk/doc/local-authority/30UN,Area 3 - Parks/Leyland East West,Grounds Maint Cntrctrs Chgs,4657,Supply & Installation of 2no Flag Poles at Worden Park Main Car Park.,20/04/2016,0000407171,"1,435.00",Revenue,GLASSFIBRE FLAGPOLES LTD,00087162
South Ribble Council,http://statistics.data.gov.uk/doc/local-authority/30UN,Area 3 - Parks/Leyland East West,Grounds Maint Cntrctrs Chgs,4657,no existing flag poles including replacement of metal locking doors at Hurst Grange,20/04/2016,0000407171,94.00,Revenue,GLASSFIBRE FLAGPOLES LTD,00087162
South Ribble Council,http://statistics.data.gov.uk/doc/local-authority/30UN,HR & Communications,Training Expense-Course Fees,1405,SUPPORT OF THE LEADERSHIP REVIEW AT SRBC,22/04/2016,0000413473,758.50,Revenue,Greengage Consulting Limited,131402
South Ribble Council,http://statistics.data.gov.uk/doc/local-authority/30UN,Regeneration,Capital Expenditure,C234,Dismantle of trees on 2 sites - estimate 57 trees down to ground level to fell or mantle ,22/04/2016,0000406692,"2,850.00",Revenue,Greenlands Tree Care Ltd,131613
South Ribble Council,http://statistics.data.gov.uk/doc/local-authority/30UN,Area 2 - Waste Transport/Eastern & Central Teams,Materials General,4040,"1 DISC, 1 AIR BAG - VN10 DKL - JFC6356 - GA",08/04/2016,0000412788,440.00,Revenue,H & J SERVICES LTD,00114446
South Ribble Council,http://statistics.data.gov.uk/doc/local-authority/30UN,Area 2 - Waste Transport/Eastern & Central Teams,Materials General,4040,ASSORTED FILTERS (IMPREST STOCK),08/04/2016,0000412789,495.73,Revenue,H & J SERVICES LTD,00114446
South Ribble Council,http://statistics.data.gov.uk/doc/local-authority/30UN,Area 2 - Waste Transport/Eastern & Central Teams,Operational Furniture & Equip,4010,Various filters,15/04/2016,0000413137,274.73,Revenue,H & J SERVICES LTD,00114446
South Ribble Council,http://statistics.data.gov.uk/doc/local-authority/30UN,Information Services,Publications,4142,Annual subscription 2 copies  The Municipal Journal,06/04/2016,0000412777,280.00,Revenue,HEMMING GROUP LTD,00023867
South Ribble Council,http://statistics.data.gov.uk/doc/local-authority/30UN,Information Services,Peripherals,4248,HFX System Maintenance Support Contract for period 03/04/16 - 02/04/17,13/04/2016,0000412895,"3,253.75",Revenue,HFX LTD,00023728
South Ribble Council,http://statistics.data.gov.uk/doc/local-authority/30UN,Environmental Health,Licence Fees,488B,Licence Fees,13/04/2016,0000412855,"1,000.00",Revenue,HIGHER WALTON COMMUNITY CENTRE,00070535
South Ribble Council,http://statistics.data.gov.uk/doc/local-authority/30UN,Area 3 - Parks/Leyland East West,Grounds Maint Cntrctrs Chgs,4657,"4x Supply 1.2m x 1.2m prosafe gates in yellow @ 645.60.1x right handed gates, 3x",20/04/2016,0000402371,"2,582.40",Revenue,IAE,131860
South Ribble Council,http://statistics.data.gov.uk/doc/local-authority/30UN,Area 3 - Parks/Leyland East West,Grounds Maint Cntrctrs Chgs,4657,supply a 3m wide 1.2 high double,20/04/2016,0000406526,"1,236.32",Revenue,IAE,131860
South Ribble Council,http://statistics.data.gov.uk/doc/local-authority/30UN,Information Services,Peripherals,4248,Lalpac Enterprise Server Edition maintenance for period 18/03/16 - 17/03/17,20/04/2016,0000413267,"4,597.70",Revenue,IDOX PLC,00104485
South Ribble Council,http://statistics.data.gov.uk/doc/local-authority/30UN,Revenues Plus,Professional Fees,4510,Fees,06/04/2016,0000412511,610.00,Revenue,Inform CPI Ltd,131666
South Ribble Council,http://statistics.data.gov.uk/doc/local-authority/30UN,Revenues Plus,Professional Fees,4510,RV finder fees,06/04/2016,0000412512,325.00,Revenue,Inform CPI Ltd,131666
South Ribble Council,http://statistics.data.gov.uk/doc/local-authority/30UN,Revenues Plus,Professional Fees,4510,RV Finder fees,06/04/2016,0000412513,300.00,Revenue,Inform CPI Ltd,131666
South Ribble Council,http://statistics.data.gov.uk/doc/local-authority/30UN,Revenues Plus,Professional Fees,4510,RV finder fee,06/04/2016,0000412514,"2,400.00",Revenue,Inform CPI Ltd,131666
South Ribble Council,http://statistics.data.gov.uk/doc/local-authority/30UN,Revenues Plus,Professional Fees,4510,"Fees - Holster Farm, Nabs Head Lane",06/04/2016,0000412515,940.00,Revenue,Inform CPI Ltd,131666
South Ribble Council,http://statistics.data.gov.uk/doc/local-authority/30UN,Revenues Plus,Professional Fees,4510,"RV Finder, Dunbia",20/04/2016,0000413420,"3,850.00",Revenue,Inform CPI Ltd,131666
South Ribble Council,http://statistics.data.gov.uk/doc/local-authority/30UN,Information Services,Peripherals,4247,Project 2016 SNGL MVL Perpetual on Select Plus,06/04/2016,0000412506,310.48,Revenue,INSIGHT UK,00120744
South Ribble Council,http://statistics.data.gov.uk/doc/local-authority/30UN,Information Services,Peripherals,4243,"ESA renewal 01/04/16 - 31/03/17, as per quote",13/04/2016,0000413145,"43,989.38",Revenue,INSIGHT UK,00120744
South Ribble Council,http://statistics.data.gov.uk/doc/local-authority/30UN,Neighbourhood Admin & Support,Materials General,4040,QC10 - QUICK SET CONCRETE -,22/04/2016,0000413492,"1,228.64",Revenue,INSTARMAC GROUP PLC,00024905
South Ribble Council,http://statistics.data.gov.uk/doc/local-authority/30UN,Regeneration,Advertising,4841,Public Notices in relation to Planning applications,06/04/2016,0000412374,682.50,Revenue,JOHNSTON PUBLISHING (NORTH WEST),00011345
South Ribble Council,http://statistics.data.gov.uk/doc/local-authority/30UN,Legal,Professional Fees,4510,To place an advert for `Notice of Sale of Public Open Space` in the Leyland Guardian ,06/04/2016,0000412458,559.00,Revenue,JOHNSTON PUBLISHING (NORTH WEST),00011345
South Ribble Council,http://statistics.data.gov.uk/doc/local-authority/30UN,Planning,Advertising,4841,Public notices for planning applications.,20/04/2016,0000413191,525.00,Revenue,JOHNSTON PUBLISHING (NORTH WEST),00011345
South Ribble Council,http://statistics.data.gov.uk/doc/local-authority/30UN,Healthy Communities,Other Misc,4851,Hockey coaching delivered by NAME REDACTED on behalf of South Ribble Borough ,06/04/2016,0000412340,"1,000.00",Revenue,NAME REDACTED,131841
South Ribble Council,http://statistics.data.gov.uk/doc/local-authority/30UN,Planning,Professional Fees,4510,"Former Arla Foods site, Pear Tree Gardens, School Lane, Bamber Bridge.  Prof fees",15/04/2016,0000413141,815.67,Revenue,NAME REDACTED,131948
South Ribble Council,http://statistics.data.gov.uk/doc/local-authority/30UN,Planning,Professional Fees,4510,"Planning viability advice regarding planning application Black Bull Inn, School Lane, ",20/04/2016,0000413200,"1,250.00",Revenue,NAME REDACTED,131948
South Ribble Council,http://statistics.data.gov.uk/doc/local-authority/30UN,Building Control,Professional Fees,4510,LABC Service Fee - 2016-17,06/04/2016,0000407520,"1,951.92",Revenue,LABC,00119218
South Ribble Council,http://statistics.data.gov.uk/doc/local-authority/30UN,Area 2 - Waste Transport/Eastern & Central Teams,Waste Disposal Charges,5112,December 2015 - Incineration of Clinical Waste,20/04/2016,0000407618,800.47,Revenue,LANCASHIRE TEACHING FT,00120715
South Ribble Council,http://statistics.data.gov.uk/doc/local-authority/30UN,Shared Financial Services,Contributions,4730,new homes bonus,13/04/2016,0000412762,"99,155.00",Revenue,LANCS COUNTY COUNCIL,00041645
South Ribble Council,http://statistics.data.gov.uk/doc/local-authority/30UN,Area 1 - Penwortham Western Parishes,Professional Fees,4516,BACK OFF ICE PROCESSING OCT 2014 - DECEMBER 2014 INCLUDING SEPT,22/04/2016,0000413184,535.86,Revenue,LANCS COUNTY COUNCIL,00041645
South Ribble Council,http://statistics.data.gov.uk/doc/local-authority/30UN,Area 1 - Penwortham Western Parishes,Professional Fees,4516,TEC RECHARGES OCTOBER 2014 - DECEMBER 2014,22/04/2016,0000413184,49.00,Revenue,LANCS COUNTY COUNCIL,00041645
South Ribble Council,http://statistics.data.gov.uk/doc/local-authority/30UN,Area 1 - Penwortham Western Parishes,Professional Fees,4516,"BACK OFFICE PROCESSING @ 3.45 PER CASE JANUARY 2016 - 101 CASES ",27/04/2016,0000413268,928.05,Revenue,LANCS COUNTY COUNCIL,00041645
South Ribble Council,http://statistics.data.gov.uk/doc/local-authority/30UN,Area 1 - Penwortham Western Parishes,Professional Fees,4516,"TEC RECHARGES @ 7.00 PER CASE OCTOBER CORRECTIO  CASES MARCH ",27/04/2016,0000413268,70.00,Revenue,LANCS COUNTY COUNCIL,00041645
South Ribble Council,http://statistics.data.gov.uk/doc/local-authority/30UN,Legal,Other Local Authorities,4530,LAND CHARGES - MARCH 2016,27/04/2016,0000413536,"1,039.00",Revenue,LANCS COUNTY COUNCIL,00041645
South Ribble Council,http://statistics.data.gov.uk/doc/local-authority/30UN,Area 3 - Parks/Leyland East West,Materials General,4040,1x pallet (BTTD06) Premier Turf Dressing (Pallett 40x25kgs),22/04/2016,0000413275,188.00,Revenue,LBS WORLDWIDE LTD,00026327
South Ribble Council,http://statistics.data.gov.uk/doc/local-authority/30UN,Area 3 - Parks/Leyland East West,Materials General,4040,1x 25kg Pro Master 20 (Pro20),22/04/2016,0000413275,91.60,Revenue,LBS WORLDWIDE LTD,00026327
South Ribble Council,http://statistics.data.gov.uk/doc/local-authority/30UN,Area 3 - Parks/Leyland East West,Materials General,4040,1x 25kg OSMO Pro 6 - ornamental Fertiliser,22/04/2016,0000413275,31.15,Revenue,LBS WORLDWIDE LTD,00026327
South Ribble Council,http://statistics.data.gov.uk/doc/local-authority/30UN,Area 3 - Parks/Leyland East West,Materials General,4040,150x bags Westland Farmyard Manure (50Litres) @ 3.33,22/04/2016,0000413275,499.50,Revenue,LBS WORLDWIDE LTD,00026327
South Ribble Council,http://statistics.data.gov.uk/doc/local-authority/30UN,Area 3 - Parks/Leyland East West,Grounds Maint Cntrctrs Chgs,4657,WELDING WORKS ON THE SKATE RAMPS AT WITHY GROVE PLAY AREA.,13/04/2016,0000402803,550.00,Revenue,LIFTING PROJECTS UK,131862
South Ribble Council,http://statistics.data.gov.uk/doc/local-authority/30UN,Property Services,Rep & Maint Premises,2020,"attend Broadgate cycles, provide all equipment and labour to remove a chimney",06/04/2016,0000412522,465.00,Revenue,MAINCOAT LTD,00099244
South Ribble Council,http://statistics.data.gov.uk/doc/local-authority/30UN,Property Services,Rep & Maint Premises,2020,"fabricate 4 new weir overflows at Bamber Bridge Leisure Centre,remove metal cladding",06/04/2016,0000412522,329.50,Revenue,MAINCOAT LTD,00099244
South Ribble Council,http://statistics.data.gov.uk/doc/local-authority/30UN,Property Services,Rep & Maint Premises,2020,materials line 1,06/04/2016,0000412522,512.00,Revenue,MAINCOAT LTD,00099244
South Ribble Council,http://statistics.data.gov.uk/doc/local-authority/30UN,Property Services,Rep & Maint Premises,2020,materials line 2,06/04/2016,0000412522,360.50,Revenue,MAINCOAT LTD,00099244
South Ribble Council,http://statistics.data.gov.uk/doc/local-authority/30UN,Property Services,Rep & Maint Premises,2024,Holland House Farm Please carry out repair all downspouts and guttering. ,29/04/2016,0000418280,144.50,Revenue,MAINCOAT LTD,00099244
South Ribble Council,http://statistics.data.gov.uk/doc/local-authority/30UN,Property Services,Rep & Maint Premises,2020,ADDRESS REDACTED -  Replace the slipped slates see pics,29/04/2016,0000418280,89.00,Revenue,MAINCOAT LTD,00099244
South Ribble Council,http://statistics.data.gov.uk/doc/local-authority/30UN,Property Services,Rep & Maint Premises,2024,materials line1,29/04/2016,0000418280,74.00,Revenue,MAINCOAT LTD,00099244
South Ribble Council,http://statistics.data.gov.uk/doc/local-authority/30UN,Property Services,Rep & Maint Premises,2020,materials line2,29/04/2016,0000418280,18.00,Revenue,MAINCOAT LTD,00099244
South Ribble Council,http://statistics.data.gov.uk/doc/local-authority/30UN,Healthy Communities,Capital Expenditure,C234,various bulbs and then prep the ground and planting on area ADDRESS REDACTED,27/04/2016,0000413155,846.95,Revenue,NAME REDACTED,131673
South Ribble Council,http://statistics.data.gov.uk/doc/local-authority/30UN,Regeneration,Capital Expenditure,C234,Piling and bridge foundation Cost 5225.60 ,08/04/2016,0000412493,"5,225.60",Revenue,Mawson Piling Ltd,131672
South Ribble Council,http://statistics.data.gov.uk/doc/local-authority/30UN,Area 2 - Waste Transport/Eastern & Central Teams,External Contractors Charges,4570,SPEC REPAIR - JFC6288 - PJ08FZG - PD,13/04/2016,0000412886,477.00,Revenue,MERLIN DIESEL SYSTEM LTD,130925
South Ribble Council,http://statistics.data.gov.uk/doc/local-authority/30UN,Property Services,Rep & Maint Fixed Plant,2035,2016 - 2017 for maintenance and monitoring of intruder alarm ADDRESS REDACTED ,29/04/2016,0000418304,540.00,Revenue,MMP FIRE AND SECURITY CENTRE,131168
South Ribble Council,http://statistics.data.gov.uk/doc/local-authority/30UN,Area 1 - Penwortham Western Parishes,Professional Fees,4521,PROVISION OF STRAY DOG SERVICE - TO COVER MARCH 2016,22/04/2016,0000412836,461.49,Revenue,MORNINGSIDE KENNELS,00067755
South Ribble Council,http://statistics.data.gov.uk/doc/local-authority/30UN,Environmental Health,Licence Fees,488B,1ST QTR,13/04/2016,0000412856,"1,375.00",Revenue,MOSS SIDE COMMUNITY FORUM,00098724
South Ribble Council,http://statistics.data.gov.uk/doc/local-authority/30UN,Planning,Professional Fees,4510,Consultancy Fees for work - NAME REDACTED v NAME REDACTED Longfold Farm,15/04/2016,0000412794,"1,000.00",Revenue,NAME REDACTED,131944
South Ribble Council,http://statistics.data.gov.uk/doc/local-authority/30UN,Planning,Professional Fees,4510,Professional fees in relation to ADDRESS REDACTED,22/04/2016,0000413421,"1,452.50",Revenue,NAME REDACTED,130791
South Ribble Council,http://statistics.data.gov.uk/doc/local-authority/30UN,Planning,Legal,4821,NAME REDACTED V South Ribble BC andNAME REDACTED - Longfold Farm ,13/04/2016,0000413129,"3,412.50",Revenue,NAME REDACTED,131927
South Ribble Council,http://statistics.data.gov.uk/doc/local-authority/30UN,Area 3 - Parks/Leyland East West,Grounds Maint Cntrctrs Chgs,4657,DAMAGES TO BLADE FURTHER TO PUR0023537,13/04/2016,0000412783,354.02,Revenue,MTS Nationwide Limited,131839
South Ribble Council,http://statistics.data.gov.uk/doc/local-authority/30UN,Area 2 - Waste Transport/Eastern & Central Teams,External Contractors Charges,4570,LOLER INSPECTION (X2) - JFC6272 - VK09AHJ - PD,20/04/2016,0000413274,111.00,Revenue,MUNICIPAL VEHICLE INSPECTION SERVICES LT,00096645
South Ribble Council,http://statistics.data.gov.uk/doc/local-authority/30UN,Area 2 - Waste Transport/Eastern & Central Teams,External Contractors Charges,4570,LOLER INSPECTION - JFC6273 - PJ62UCM -PD,20/04/2016,0000413274,55.50,Revenue,MUNICIPAL VEHICLE INSPECTION SERVICES LT,00096645
South Ribble Council,http://statistics.data.gov.uk/doc/local-authority/30UN,Area 2 - Waste Transport/Eastern & Central Teams,External Contractors Charges,4570,LOLER INSPECTION - JFC6274 - PO13UUM - PD,20/04/2016,0000413274,55.50,Revenue,MUNICIPAL VEHICLE INSPECTION SERVICES LT,00096645
South Ribble Council,http://statistics.data.gov.uk/doc/local-authority/30UN,Area 2 - Waste Transport/Eastern & Central Teams,External Contractors Charges,4570,LOLER INSPECTION - JFC6275 - VN10DKL - PD,20/04/2016,0000413274,55.50,Revenue,MUNICIPAL VEHICLE INSPECTION SERVICES LT,00096645
South Ribble Council,http://statistics.data.gov.uk/doc/local-authority/30UN,Area 2 - Waste Transport/Eastern & Central Teams,External Contractors Charges,4570,LOLER INSPECTION - JFC6276 - NX58FJZ - PD,20/04/2016,0000413274,55.50,Revenue,MUNICIPAL VEHICLE INSPECTION SERVICES LT,00096645
South Ribble Council,http://statistics.data.gov.uk/doc/local-authority/30UN,Area 2 - Waste Transport/Eastern & Central Teams,External Contractors Charges,4570,LOLER INSPECTION - JFC6277 - PL08 MLK - PD,20/04/2016,0000413274,55.50,Revenue,MUNICIPAL VEHICLE INSPECTION SERVICES LT,00096645
South Ribble Council,http://statistics.data.gov.uk/doc/local-authority/30UN,Information Services,Peripherals,4241,Dell MS 116 Mouse - USB - black,27/04/2016,0000413474,157.20,Revenue,MYPREMIER LTD,130091
South Ribble Council,http://statistics.data.gov.uk/doc/local-authority/30UN,Information Services,Peripherals,4241,Dell KB113 - keyboard,27/04/2016,0000413474,181.40,Revenue,MYPREMIER LTD,130091
South Ribble Council,http://statistics.data.gov.uk/doc/local-authority/30UN,Information Services,Peripherals,4241,Delivery,27/04/2016,0000413474,10.00,Revenue,MYPREMIER LTD,130091
South Ribble Council,http://statistics.data.gov.uk/doc/local-authority/30UN,Scrutiny,Training Expense-Course Fees,1420,Scrutiny Committee workshop facilitation training 16 March 2016 NAME REDACTED ,27/04/2016,0000413521,516.58,Revenue,N WEST LOCAL AUTH EMPLOYERS ORGANISATION,00029829
South Ribble Council,http://statistics.data.gov.uk/doc/local-authority/30UN,Property Services,Client Internal Charges,4590,Weekly waste removal for Leyland market including rental fees,13/04/2016,0000412857,462.45,Revenue,NEALES WASTE MANAGEMENT,130129
South Ribble Council,http://statistics.data.gov.uk/doc/local-authority/30UN,Homelessness,Other Expenses,4630,Case Law workshop,20/04/2016,0000413165,500.00,Revenue,Neil Morland Housing Consultant Ltd,131842
South Ribble Council,http://statistics.data.gov.uk/doc/local-authority/30UN,Homelessness,Contractors Charges 5,5311,agreed rent for 20 East Street 7/3/16 - 3/4/16,22/04/2016,0000413483,384.20,Revenue,NEW PROGRESS HOUSING ASSOC ref:DNSOU001,00030135
South Ribble Council,http://statistics.data.gov.uk/doc/local-authority/30UN,Homelessness,Professional Fees,4529,OOH annual homeless  monitoring service 2016/2017,27/04/2016,0000413533,"3,798.88",Revenue,NEW PROGRESS HOUSING ASSOC ref:DNSOU001,00030135
South Ribble Council,http://statistics.data.gov.uk/doc/local-authority/30UN,HR & Communications,Advertising,4848,PRINTING OF FORWARD - SPRING EDITION 2016,27/04/2016,0000412342,"4,165.00",Revenue,NEWSQUEST MEDIA GROUP LTD,00121934
South Ribble Council,http://statistics.data.gov.uk/doc/local-authority/30UN,HR & Communications,Advertising,4848,delivery,27/04/2016,0000412342,365.00,Revenue,NEWSQUEST MEDIA GROUP LTD,00121934
South Ribble Council,http://statistics.data.gov.uk/doc/local-authority/30UN,Area 1 - Penwortham Western Parishes,Professional Fees,4514,DEPLOYMENT OF OFFICERS MARCH 2016,15/04/2016,0000412853,"1,221.60",Revenue,NSL LTD,00116868
South Ribble Council,http://statistics.data.gov.uk/doc/local-authority/30UN,Area 1 - Penwortham Western Parishes,Other Misc,4855,CASH COLLECTION MARCH 2016,15/04/2016,0000412853,216.40,Revenue,NSL LTD,00116868
South Ribble Council,http://statistics.data.gov.uk/doc/local-authority/30UN,Shared Financial Services,Balance Sheet,0008,Refund of overpayment,13/04/2016,0000413157,"85,762.63",Revenue,NSL LTD,00116868
South Ribble Council,http://statistics.data.gov.uk/doc/local-authority/30UN,Information Services,Peripherals,4248,1 year Veeam Backup & Replication Enterprise for Vmware for 07/05/16 - 06/05/17,06/04/2016,0000412517,"2,373.60",Revenue,NVIRON LTD,00028781
South Ribble Council,http://statistics.data.gov.uk/doc/local-authority/30UN,Information Services,Peripherals,4247,1yr Software Support & Maintenance for Dell KACE for period 19/04/16 - 18/04/17,06/04/2016,0000412518,"1,039.45",Revenue,NVIRON LTD,00028781
South Ribble Council,http://statistics.data.gov.uk/doc/local-authority/30UN,Property Services,Rep & Maint Premises,2021,Carry our infrastructure services at ADDRESS REDACTED as per ref CNS 228692,29/04/2016,0000413511,"1,248.72",Revenue,OPENREACH (BT GROUP BUSINESS),131047
South Ribble Council,http://statistics.data.gov.uk/doc/local-authority/30UN,Regeneration,Consultancy Fees,4541,Deliver a business and innovation advice service within the specified geographical area,15/04/2016,0000406444,700.00,Revenue,ORVIA ENTERPRISE LTD,130039
South Ribble Council,http://statistics.data.gov.uk/doc/local-authority/30UN,Regeneration,Consultancy Fees,4541,Deliver a business and innovation advice service within the specified geographical area,15/04/2016,0000412778,"4,200.00",Revenue,ORVIA ENTERPRISE LTD,130039
South Ribble Council,http://statistics.data.gov.uk/doc/local-authority/30UN,Regeneration,Advertising,4842,"Approximately  9 AO panels, 3 A1 panels Precise number and sizes to be finally ",27/04/2016,0000412801,"2,500.00",Revenue,OXFORD ARCHAEOLOGY NORTH,00118060
South Ribble Council,http://statistics.data.gov.uk/doc/local-authority/30UN,Legal,Other Misc,4851,ANNUAL MAINTENANCE CHARGE AND ANNUAL LICENSE FEE LAW SOCIETY ,15/04/2016,0000412796,787.06,Revenue,OYEZ PROFESSIONAL SERVICES,00054823
South Ribble Council,http://statistics.data.gov.uk/doc/local-authority/30UN,Property Services,Licence Fees,4883,2016 / 2017 Music Licence fee for Leyland Market,22/04/2016,0000413241,529.80,Revenue,PERFORMING RIGHT SOCIETY LTD,00031260
South Ribble Council,http://statistics.data.gov.uk/doc/local-authority/30UN,Environmental Health,Professional Fees,4522,Professional Fees,06/04/2016,0000412521,660.00,Revenue,Personnel Checks,131483
South Ribble Council,http://statistics.data.gov.uk/doc/local-authority/30UN,Environmental Health,Professional Fees,4522,Professional Fees,06/04/2016,0000412521,199.95,Revenue,Personnel Checks,131483
South Ribble Council,http://statistics.data.gov.uk/doc/local-authority/30UN,HR & Communications,Employee Related Insurance,1819,DEPOSIT ACCOUNT 2016,06/04/2016,0000407305,"6,000.00",Revenue,PHOENIX LIFE LTD,00031532
South Ribble Council,http://statistics.data.gov.uk/doc/local-authority/30UN,Area 2 - Waste Transport/Eastern & Central Teams,Materials General,4040,1 CONTAINER OF AD-BLU - OW1141 - PD,20/04/2016,0000413202,310.00,Revenue,PILKINGTON OILS,00113531
South Ribble Council,http://statistics.data.gov.uk/doc/local-authority/30UN,Shared Financial Services,Balance Sheet,0140,refund,15/04/2016,0000412850,410.40,Revenue,PITNEY BOWES LTD,00092733
South Ribble Council,http://statistics.data.gov.uk/doc/local-authority/30UN,Information Services,Peripherals,4247,LTO3 Media Tapes,08/04/2016,0000412802,405.00,Revenue,PMD MAGNETICS,00115063
South Ribble Council,http://statistics.data.gov.uk/doc/local-authority/30UN,Information Services,Peripherals,4247,Fuji LTO Cleaners,08/04/2016,0000412802,43.00,Revenue,PMD MAGNETICS,00115063
South Ribble Council,http://statistics.data.gov.uk/doc/local-authority/30UN,Information Services,Stationery,4133,"50,000 sheets Evolution Everyday A4 80gm15000 sheets Evolution Business A4 ",20/04/2016,0000412867,308.45,Revenue,PREMIER PAPER GROUP LTD,00022606
South Ribble Council,http://statistics.data.gov.uk/doc/local-authority/30UN,Information Services,Stationery,4133,"60,000 Evolution Everyday A4 80gm 2500  Green A4 80gm2500  Canary A4 80gm",27/04/2016,0000413551,298.76,Revenue,PREMIER PAPER GROUP LTD,00022606
South Ribble Council,http://statistics.data.gov.uk/doc/local-authority/30UN,Area 2 - Waste Transport/Eastern & Central Teams,External Contractors Charges,4570,tyre repairs - TR158 - BO,06/04/2016,0000412499,539.45,Revenue,PRESTON TYRE SPECIALISTS,00109516
South Ribble Council,http://statistics.data.gov.uk/doc/local-authority/30UN,Democratic Services,Other Misc,4423,"87,000 A5 POLL CARDS - PCC ELECTION 5 MAY 2016",29/04/2016,0000412866,"4,439.61",Revenue,PRINT IMAGE NETWORK LTD,00089199
South Ribble Council,http://statistics.data.gov.uk/doc/local-authority/30UN,HR & Communications,Training Expense-Course Fees,1403,QUALIFICATION IN CERTIFICATED SURVEYOR IN REMEDIAL TREATMENT CSRT,15/04/2016,0000413144,"2,917.00",Revenue,PROPERTY CARE ASSOCIATION,131946
South Ribble Council,http://statistics.data.gov.uk/doc/local-authority/30UN,Information Services,Postage,4292,Meter reset Franking machine,06/04/2016,0000412775,"9,000.00",Revenue,Purchase Power,00093923
South Ribble Council,http://statistics.data.gov.uk/doc/local-authority/30UN,Information Services,Postage,4292,Transaction Fee,06/04/2016,0000412775,90.00,Revenue,Purchase Power,00093923
South Ribble Council,http://statistics.data.gov.uk/doc/local-authority/30UN,Information Services,Postage,4292,service connect meter,06/04/2016,0000412775,65.64,Revenue,Purchase Power,00093923
South Ribble Council,http://statistics.data.gov.uk/doc/local-authority/30UN,Information Services,Postage,4292,service standard WOW feeder,06/04/2016,0000412775,893.85,Revenue,Purchase Power,00093923
South Ribble Council,http://statistics.data.gov.uk/doc/local-authority/30UN,Information Services,Postage,4292,service standard printer module,06/04/2016,0000412775,201.29,Revenue,Purchase Power,00093923
South Ribble Council,http://statistics.data.gov.uk/doc/local-authority/30UN,Information Services,Postage,4292,top up,29/04/2016,0000418267,309.50,Revenue,Purchase Power,00093923
South Ribble Council,http://statistics.data.gov.uk/doc/local-authority/30UN,Property Services,Rep & Maint Premises,2020,Please provide flags and cement replace all broken flags at Civic Centre ,20/04/2016,0000413210,486.00,Revenue,RED ROSE BUILDING MAINTENANCE,00085410
South Ribble Council,http://statistics.data.gov.uk/doc/local-authority/30UN,Property Services,Rep & Maint Premises,2020,materials,20/04/2016,0000413210,190.00,Revenue,RED ROSE BUILDING MAINTENANCE,00085410
South Ribble Council,http://statistics.data.gov.uk/doc/local-authority/30UN,Property Services,Rep & Maint Premises,2020,Attend ADDRESS REDACTED to strip out the mezzanine floor,20/04/2016,0000413211,"1,000.00",Revenue,RED ROSE BUILDING MAINTENANCE,00085410
South Ribble Council,http://statistics.data.gov.uk/doc/local-authority/30UN,Property Services,Rep & Maint Premises,2020,materials,20/04/2016,0000413211,995.00,Revenue,RED ROSE BUILDING MAINTENANCE,00085410
South Ribble Council,http://statistics.data.gov.uk/doc/local-authority/30UN,Property Services,Rep & Maint Premises,2020,Please carry out general maintenance at ADDRESS REDACTED materials and labour,27/04/2016,0000413561,378.00,Revenue,RED ROSE BUILDING MAINTENANCE,00085410
South Ribble Council,http://statistics.data.gov.uk/doc/local-authority/30UN,Property Services,Rep & Maint Premises,2020,MATERIALS,27/04/2016,0000413561,321.00,Revenue,RED ROSE BUILDING MAINTENANCE,00085410
South Ribble Council,http://statistics.data.gov.uk/doc/local-authority/30UN,Environmental Health,External Contractors Charges,4570,Order for 3132.00 2610 + VAT Reid Construction for ditch clearing at Holland House,13/04/2016,0000412825,"1,920.00",Revenue,Reid Construction & Civil Engineering Ltd,131544
South Ribble Council,http://statistics.data.gov.uk/doc/local-authority/30UN,Environmental Health,External Contractors Charges,4570,Order for 3132.00 (2610 + VAT) for Reid Construction for ditch  NAME REDACTED,13/04/2016,0000412826,690.00,Revenue,Reid Construction & Civil Engineering Ltd,131544
South Ribble Council,http://statistics.data.gov.uk/doc/local-authority/30UN,Neighbourhood Admin & Support,Vehicle Running Costs,3132,"17,000 LITRES DIESEL (@ 81 PENCE PER LITRE)",13/04/2016,0000412897,"13,032.81",Revenue,RIBBLE FUEL OILS,00047461
South Ribble Council,http://statistics.data.gov.uk/doc/local-authority/30UN,Information Services,Postage,4295,Postage,22/04/2016,0000413391,281.44,Revenue,ROYAL MAIL GROUP PLC,00033543
South Ribble Council,http://statistics.data.gov.uk/doc/local-authority/30UN,Property Services,Energy Costs,2304,19/12/15 to 30/3/16,06/04/2016,0000412539,285.35,Revenue,SCOTTISH HYDRO ELECTRIC,130051
South Ribble Council,http://statistics.data.gov.uk/doc/local-authority/30UN,Property Services,Energy Costs,2303,1/2/16 to 29/2/16,20/04/2016,0000413216,367.17,Revenue,SCOTTISH HYDRO ELECTRIC,130051
South Ribble Council,http://statistics.data.gov.uk/doc/local-authority/30UN,Property Services,Energy Costs,2307,ccl,20/04/2016,0000413216,17.94,Revenue,SCOTTISH HYDRO ELECTRIC,130051
South Ribble Council,http://statistics.data.gov.uk/doc/local-authority/30UN,Property Services,Energy Costs,2303,4/2/16 to 29/2/16,27/04/2016,0000413219,461.36,Revenue,SCOTTISH HYDRO ELECTRIC,130051
South Ribble Council,http://statistics.data.gov.uk/doc/local-authority/30UN,Property Services,Energy Costs,2303,27/11/15 to 4/3/16,22/04/2016,0000413221,"2,200.70",Revenue,SCOTTISH HYDRO ELECTRIC,130051
South Ribble Council,http://statistics.data.gov.uk/doc/local-authority/30UN,Property Services,Energy Costs,2307,ccl,22/04/2016,0000413221,107.76,Revenue,SCOTTISH HYDRO ELECTRIC,130051
South Ribble Council,http://statistics.data.gov.uk/doc/local-authority/30UN,Property Services,Energy Costs,2303,1/2/16 to 29/2/16,22/04/2016,0000413222,929.84,Revenue,SCOTTISH HYDRO ELECTRIC,130051
South Ribble Council,http://statistics.data.gov.uk/doc/local-authority/30UN,Property Services,Energy Costs,2307,ccl,22/04/2016,0000413222,46.61,Revenue,SCOTTISH HYDRO ELECTRIC,130051
South Ribble Council,http://statistics.data.gov.uk/doc/local-authority/30UN,Property Services,Energy Costs,2303,1/2/16 to 29/2/16,22/04/2016,0000413223,"2,707.55",Revenue,SCOTTISH HYDRO ELECTRIC,130051
South Ribble Council,http://statistics.data.gov.uk/doc/local-authority/30UN,Property Services,Energy Costs,2307,ccl,22/04/2016,0000413223,140.52,Revenue,SCOTTISH HYDRO ELECTRIC,130051
South Ribble Council,http://statistics.data.gov.uk/doc/local-authority/30UN,Property Services,Energy Costs,2303,1/3/16 to 31/3/16,22/04/2016,0000413224,"2,791.34",Revenue,SCOTTISH HYDRO ELECTRIC,130051
South Ribble Council,http://statistics.data.gov.uk/doc/local-authority/30UN,Property Services,Energy Costs,2307,ccl,22/04/2016,0000413224,145.31,Revenue,SCOTTISH HYDRO ELECTRIC,130051
South Ribble Council,http://statistics.data.gov.uk/doc/local-authority/30UN,Property Services,Energy Costs,2303,2/12/15 to 4/3/16,22/04/2016,0000413230,334.01,Revenue,SCOTTISH HYDRO ELECTRIC,130051
South Ribble Council,http://statistics.data.gov.uk/doc/local-authority/30UN,Property Services,Energy Costs,2303,28/11/15 to 22,27/04/2016,0000413231,566.12,Revenue,SCOTTISH HYDRO ELECTRIC,130051
South Ribble Council,http://statistics.data.gov.uk/doc/local-authority/30UN,Property Services,Energy Costs,2307,ccl,27/04/2016,0000413231,29.12,Revenue,SCOTTISH HYDRO ELECTRIC,130051
South Ribble Council,http://statistics.data.gov.uk/doc/local-authority/30UN,Property Services,Energy Costs,2303,1/2/16 to 29/2/16,20/04/2016,0000413232,"1,991.44",Revenue,SCOTTISH HYDRO ELECTRIC,130051
South Ribble Council,http://statistics.data.gov.uk/doc/local-authority/30UN,Property Services,Energy Costs,2307,ccl,20/04/2016,0000413232,106.83,Revenue,SCOTTISH HYDRO ELECTRIC,130051
South Ribble Council,http://statistics.data.gov.uk/doc/local-authority/30UN,Property Services,Energy Costs,2304,19/12/16 to 30/3/16,20/04/2016,0000413235,892.98,Revenue,SCOTTISH HYDRO ELECTRIC,130051
South Ribble Council,http://statistics.data.gov.uk/doc/local-authority/30UN,Property Services,Energy Costs,2307,ccl,20/04/2016,0000413235,45.16,Revenue,SCOTTISH HYDRO ELECTRIC,130051
South Ribble Council,http://statistics.data.gov.uk/doc/local-authority/30UN,Property Services,Energy Costs,2304,4/3/16 to 1/4/16,20/04/2016,0000413236,"1,569.04",Revenue,SCOTTISH HYDRO ELECTRIC,130051
South Ribble Council,http://statistics.data.gov.uk/doc/local-authority/30UN,Property Services,Energy Costs,2307,ccl,20/04/2016,0000413236,105.04,Revenue,SCOTTISH HYDRO ELECTRIC,130051
South Ribble Council,http://statistics.data.gov.uk/doc/local-authority/30UN,Property Services,Energy Costs,2303,1/3/16 to 31/3/16,22/04/2016,0000413396,391.36,Revenue,SCOTTISH HYDRO ELECTRIC,130051
South Ribble Council,http://statistics.data.gov.uk/doc/local-authority/30UN,Property Services,Energy Costs,2307,ccl,22/04/2016,0000413396,19.22,Revenue,SCOTTISH HYDRO ELECTRIC,130051
South Ribble Council,http://statistics.data.gov.uk/doc/local-authority/30UN,Property Services,Energy Costs,2303,2/1/16 to 1/4/16,22/04/2016,0000413397,408.33,Revenue,SCOTTISH HYDRO ELECTRIC,130051
South Ribble Council,http://statistics.data.gov.uk/doc/local-authority/30UN,Property Services,Energy Costs,2307,ccl,22/04/2016,0000413397,18.81,Revenue,SCOTTISH HYDRO ELECTRIC,130051
South Ribble Council,http://statistics.data.gov.uk/doc/local-authority/30UN,Property Services,Energy Costs,2303,1/3/16 to 31/3/16,22/04/2016,0000413403,986.11,Revenue,SCOTTISH HYDRO ELECTRIC,130051
South Ribble Council,http://statistics.data.gov.uk/doc/local-authority/30UN,Property Services,Energy Costs,2307,ccl,22/04/2016,0000413403,49.63,Revenue,SCOTTISH HYDRO ELECTRIC,130051
South Ribble Council,http://statistics.data.gov.uk/doc/local-authority/30UN,Property Services,Energy Costs,2303,2/1/16 to 1/4/16,22/04/2016,0000413405,347.93,Revenue,SCOTTISH HYDRO ELECTRIC,130051
South Ribble Council,http://statistics.data.gov.uk/doc/local-authority/30UN,Property Services,Energy Costs,2303,1/3/16 to 31/3/16,22/04/2016,0000413410,"2,044.45",Revenue,SCOTTISH HYDRO ELECTRIC,130051
South Ribble Council,http://statistics.data.gov.uk/doc/local-authority/30UN,Property Services,Energy Costs,2307,ccl,22/04/2016,0000413410,109.95,Revenue,SCOTTISH HYDRO ELECTRIC,130051
South Ribble Council,http://statistics.data.gov.uk/doc/local-authority/30UN,Information Services,Professional Fees,4520,Shredding of Confidential Waste 2016/17,22/04/2016,0000413204,294.03,Revenue,SHRED-IT LTD,00109134
South Ribble Council,http://statistics.data.gov.uk/doc/local-authority/30UN,Property Services,Rep & Maint Premises,2020,Please supply 1 pump head. 5-125-4T   3 phase. Product code 3051258910,20/04/2016,0000412904,569.10,Revenue,SMEDEGAARD PUMPS LTD,130633
South Ribble Council,http://statistics.data.gov.uk/doc/local-authority/30UN,Regeneration,Consultancy Fees,4532,"Leisure Services Fees 2015/16 (296,122.78) payable by 12 monthly instalments ",22/04/2016,0000406468,"74,030.70",Revenue,SOUTH RIBBLE COMMUNITY LEISURE LTD,00094210
South Ribble Council,http://statistics.data.gov.uk/doc/local-authority/30UN,Neighbourhood Admin & Support,Operational Furniture & Equip,4010, LOPPERS - BAHCO p140-f 600mm - SP95,06/04/2016,0000412546,464.52,Revenue,SPALDINGS,00070849
South Ribble Council,http://statistics.data.gov.uk/doc/local-authority/30UN,Scrutiny,Professional Fees,4510,For the carrying out of a functional economic area research assessment South Ribble,15/04/2016,0000413166,"4,990.50",Revenue,SQW Limited,131707
South Ribble Council,http://statistics.data.gov.uk/doc/local-authority/30UN,Area 3 - Parks/Leyland East West,Grounds Maint Cntrctrs Chgs,4657,welding a hinge,22/04/2016,0000412905,250.00,Revenue,STEELWISE FABRICATIONS,00053002
South Ribble Council,http://statistics.data.gov.uk/doc/local-authority/30UN,Development Enterprise & Comm Mgnt,Advertising,4842,Management of Museum Website as per agreement: Six Months Renewal from 1-4-16,27/04/2016,0000413143,440.00,Revenue,NAME REDACTED,00113557
South Ribble Council,http://statistics.data.gov.uk/doc/local-authority/30UN,Area 3 - Parks/Leyland East West,Grounds Maint Cntrctrs Chgs,4657,1 RE-CONDITIONED CAT GENNY 3 KIT (Q76L),15/04/2016,0000412893,385.00,Revenue,SWAN TEST & CALIBRATION,00012564
South Ribble Council,http://statistics.data.gov.uk/doc/local-authority/30UN,Property Services,Rep & Maint Fixed Plant,2035,Annual contract 2016 /  2017 for intruder alarm maintenance at Leyland market,13/04/2016,0000412862,569.00,Revenue,SWIFT FIRE & SECURITY,00041933
South Ribble Council,http://statistics.data.gov.uk/doc/local-authority/30UN,Property Services,Rep & Maint Fixed Plant,2035,Annual contract 2016 / 2017 for intruder alarm maintenance at Longton Brickcroft,13/04/2016,0000412863,600.00,Revenue,SWIFT FIRE & SECURITY,00041933
South Ribble Council,http://statistics.data.gov.uk/doc/local-authority/30UN,Property Services,Rep & Maint Premises,2020,fit felt and padded door seals to the doors at the Market as discussed on site 3054 Qty,29/04/2016,0000413532,334.03,Revenue,THE AUTOMATIC DOOR COMPANY LTD,00108533
South Ribble Council,http://statistics.data.gov.uk/doc/local-authority/30UN,Legal,Publications,4142,Online Subscription to Westlaw UK Services 1 January 2016 - 31 December 2016,06/04/2016,0000412519,"3,329.80",Revenue,THOMSON REUTERS,00034979
South Ribble Council,http://statistics.data.gov.uk/doc/local-authority/30UN,Legal,Publications,4142,Online Subscription to Practical Law Services - 1 January 2016 - 31 December 2016,06/04/2016,0000412519,"2,163.20",Revenue,THOMSON REUTERS,00034979
South Ribble Council,http://statistics.data.gov.uk/doc/local-authority/30UN,Legal,Publications,4142,Online Subscription to Westlaw Services (Online Books),06/04/2016,0000412520,"7,133.00",Revenue,THOMSON REUTERS,00034979
South Ribble Council,http://statistics.data.gov.uk/doc/local-authority/30UN,Legal,Publications,4142,aldridge pract lease prec LL R46+BINDS,29/04/2016,0000413554,408.00,Revenue,THOMSON REUTERS,00034979
South Ribble Council,http://statistics.data.gov.uk/doc/local-authority/30UN,Housing,Contributions,4730,Supply and fit upvc double glazing as part of winter warmth scheme,20/04/2016,0000413242,429.17,Revenue,TRADE WINDOWS & CONSERVATORIES,00119823
South Ribble Council,http://statistics.data.gov.uk/doc/local-authority/30UN,Housing,Contributions,4730,Supply and fit upvc double glazing as part of winter warmth scheme,20/04/2016,0000413243,833.33,Revenue,TRADE WINDOWS & CONSERVATORIES,00119823
South Ribble Council,http://statistics.data.gov.uk/doc/local-authority/30UN,Housing,Contributions,4730,Supply and fit upvc double glazing as part of winter warmth scheme,20/04/2016,0000413244,404.17,Revenue,TRADE WINDOWS & CONSERVATORIES,00119823
South Ribble Council,http://statistics.data.gov.uk/doc/local-authority/30UN,Housing,Contributions,4730,Supply and fit upvc double glazing as part of winter warmth scheme,20/04/2016,0000413245,404.17,Revenue,TRADE WINDOWS & CONSERVATORIES,00119823
South Ribble Council,http://statistics.data.gov.uk/doc/local-authority/30UN,Housing,Contributions,4730,Supply and fit upvc double glazing as part of winter warmth scheme,20/04/2016,0000413246,833.33,Revenue,TRADE WINDOWS & CONSERVATORIES,00119823
South Ribble Council,http://statistics.data.gov.uk/doc/local-authority/30UN,Housing,Contributions,4730,Supply and fit upvc double glazing as part of winter warmth scheme,20/04/2016,0000413247,429.17,Revenue,TRADE WINDOWS & CONSERVATORIES,00119823
South Ribble Council,http://statistics.data.gov.uk/doc/local-authority/30UN,Healthy Communities,Provisions,4310,Tea Room Stock,27/04/2016,0000413414,325.25,Revenue,TREVORS FOOD SERVICE,130829
South Ribble Council,http://statistics.data.gov.uk/doc/local-authority/30UN,Healthy Communities,Provisions,4310,vatable items,27/04/2016,0000413414,18.15,Revenue,TREVORS FOOD SERVICE,130829
South Ribble Council,http://statistics.data.gov.uk/doc/local-authority/30UN,Area 3 - Parks/Leyland East West,Grounds Maint Cntrctrs Chgs,4657,67No. NEW UNTREATED OAK SLEEPERS  2400x200x100m 212No. CUSTOM ,29/04/2016,0000413530,"4,368.96",Revenue,UK Timber Ltd,131931
South Ribble Council,http://statistics.data.gov.uk/doc/local-authority/30UN,Property Services,Water Charges,2511,1/4/16 to 31/3/17,06/04/2016,0000412472,"3,391.91",Revenue,UNITED UTILITIES WATER PLC,00029845
South Ribble Council,http://statistics.data.gov.uk/doc/local-authority/30UN,Property Services,Water Charges,2511,1/4/16 to 31/3/17,13/04/2016,0000412846,"1,621.64",Revenue,UNITED UTILITIES WATER PLC,00029845
South Ribble Council,http://statistics.data.gov.uk/doc/local-authority/30UN,Area 2 - Waste Transport/Eastern & Central Teams,External Contractors Charges,4570,"1no Spec Repair, VN10 DKV, JFC6541. NAME REDACTED)",06/04/2016,0000412547,523.43,Revenue,VEHICLE WEIGHING SOLUTIONS,130983
South Ribble Council,http://statistics.data.gov.uk/doc/local-authority/30UN,Property Services,Rep & Maint Fixed Plant,2035,2016/2017 contract for CCTV maintenance at Leyland indoor market,20/04/2016,0000413206,"1,074.00",Revenue,VIDEO TEC LTD,00079196
South Ribble Council,http://statistics.data.gov.uk/doc/local-authority/30UN,Property Services,Rep & Maint Fixed Plant,2035,2016/2017 contract for CCTV maintenance Moss Side Depot ADDRESS REDACTED,20/04/2016,0000413207,"2,242.00",Revenue,VIDEO TEC LTD,00079196
South Ribble Council,http://statistics.data.gov.uk/doc/local-authority/30UN,Property Services,Rep & Maint Fixed Plant,2035,"2016 / 2017 contract for CCTV maintenance at the Civic centre, Leyland",20/04/2016,0000413208,"2,908.00",Revenue,VIDEO TEC LTD,00079196
South Ribble Council,http://statistics.data.gov.uk/doc/local-authority/30UN,Information Services,Peripherals,4269,"Annual purchase order for ISDN lines, line rentals & call charges 01/04/15 - 31/03/16",06/04/2016,0000412477,"1,266.18",Revenue,VODAFONE RE:CABLE & WIRELESS UK,130810
South Ribble Council,http://statistics.data.gov.uk/doc/local-authority/30UN,Information Services,Processing-Internal,4212,"Annual purchase order for GSi Convergence Framewotk, PSN  01/04/15 - 31/03/16",06/04/2016,0000412776,"2,576.63",Revenue,VODAFONE RE:CABLE & WIRELESS UK,130810
South Ribble Council,http://statistics.data.gov.uk/doc/local-authority/30UN,Information Services,Peripherals,4247,"Annual purchase order for link, internet & router for period 01/04/16 - 31/03/17",13/04/2016,0000412829,"1,312.66",Revenue,VODAFONE RE:CABLE & WIRELESS UK,130810
South Ribble Council,http://statistics.data.gov.uk/doc/local-authority/30UN,Legal,Balance Sheet,0030,"Test Track Development Costs associated with the Test Track Development",08/04/2016,0000412797,"1,036.00",Revenue,WEIGHTMANS LLP,00120867
South Ribble Council,http://statistics.data.gov.uk/doc/local-authority/30UN,HR & Communications,Other Misc,4851,WORK CARRIED OUT FOR DISCIPLINARY ADVICE,13/04/2016,0000412830,351.00,Revenue,WEIGHTMANS LLP,00120867
South Ribble Council,http://statistics.data.gov.uk/doc/local-authority/30UN,Legal,Balance Sheet,0030,Test Track Development Costs associated with the Test Track Development,20/04/2016,0000413171,748.00,Revenue,WEIGHTMANS LLP,00120867
South Ribble Council,http://statistics.data.gov.uk/doc/local-authority/30UN,Housing,Consultancy Fees,4541,Legal Fees in relation to the CPO of ADDRESS REDACTED,27/04/2016,0000413512,"1,785.60",Revenue,WEIGHTMANS LLP,00120867
South Ribble Council,http://statistics.data.gov.uk/doc/local-authority/30UN,Revenues Plus,Postage,4291,Revenues mail services March 2016,22/04/2016,0000413386,447.56,Revenue,WHISTL  UK LTD,131310
South Ribble Council,http://statistics.data.gov.uk/doc/local-authority/30UN,Revenues Plus,Postage,4291,Revenues mail services March 2016,29/04/2016,0000418268,571.35,Revenue,WHISTL  UK LTD,131310
South Ribble Council,http://statistics.data.gov.uk/doc/local-authority/30UN,Homelessness,Contractors Charges 5,5311,"placement for NAME REDACTED 18.3.2016 - 20.3.2016 3 nights at 80/night B&B",20/04/2016,0000413172,310.00,Revenue,WHITBURN HOUSE HOTEL,130221
South Ribble Council,http://statistics.data.gov.uk/doc/local-authority/30UN,HR & Communications,Other Misc,4851,WORK CARRIED OUT FOR THE LICENSING STAFF DISCILINARY ON 1.3.2016,06/04/2016,0000407273,"4,873.00",Revenue,WILKIN CHAPMAN LLP,131825
South Ribble Council,http://statistics.data.gov.uk/doc/local-authority/30UN,HR & Communications,Other Misc,4851,WORK CARRIED OUT IN RESPECT OF THE LICENCING STAFF DISCIPLINARY ,06/04/2016,0000407501,"4,685.55",Revenue,WILKIN CHAPMAN LLP,131825
South Ribble Council,http://statistics.data.gov.uk/doc/local-authority/30UN,HR & Communications,Other Misc,4851,overnight stay,06/04/2016,0000407501,80.99,Revenue,WILKIN CHAPMAN LLP,131825
South Ribble Council,http://statistics.data.gov.uk/doc/local-authority/30UN,HR & Communications,Other Misc,4851,WORK CARRIED OUT FOR THE LICENSING STAFF DISCIPLINARY,29/04/2016,0000413142,"6,076.94",Revenue,WILKIN CHAPMAN LLP,131825
South Ribble Council,http://statistics.data.gov.uk/doc/local-authority/30UN,Area 3 - Parks/Leyland East West,Grounds Maint Cntrctrs Chgs,4657,Park notice board with double cabinet. Oak top piece and 3no 6 x 6`` Legs,06/04/2016,0000412495,"3,220.00",Revenue,WOODSTOCK SIGNS,00039039
South Ribble Council,http://statistics.data.gov.uk/doc/local-authority/30UN,Area 3 - Parks/Leyland East West,Grounds Maint Cntrctrs Chgs,4657,10no No unauthorised Vehicle Signs 40 each,06/04/2016,0000412496,400.00,Revenue,WOODSTOCK SIGNS,00039039
South Ribble Council,http://statistics.data.gov.uk/doc/local-authority/30UN,Area 3 - Parks/Leyland East West,Grounds Maint Cntrctrs Chgs,4657,2no bye law plates (Black & silver),06/04/2016,0000412496,150.00,Revenue,WOODSTOCK SIGNS,00039039
South Ribble Council,http://statistics.data.gov.uk/doc/local-authority/30UN,Area 3 - Parks/Leyland East West,Grounds Maint Cntrctrs Chgs,4657,1no Refurbishment of Hurst Grange Entrance sign in New 150x150mm softwood legs,06/04/2016,0000412496,775.00,Revenue,WOODSTOCK SIGNS,00039039
South Ribble Council,http://statistics.data.gov.uk/doc/local-authority/30UN,Area 3 - Parks/Leyland East West,Grounds Maint Cntrctrs Chgs,4657,1no replacement gas strut,06/04/2016,0000412496,41.50,Revenue,WOODSTOCK SIGNS,00039039
South Ribble Council,http://statistics.data.gov.uk/doc/local-authority/30UN,Area 3 - Parks/Leyland East West,Grounds Maint Cntrctrs Chgs,4657,150x150x1200mm Timber Post with 4 way weathered top and byelaw plate recessed,06/04/2016,0000412497,162.00,Revenue,WOODSTOCK SIGNS,00039039
South Ribble Council,http://statistics.data.gov.uk/doc/local-authority/30UN,Area 3 - Parks/Leyland East West,Grounds Maint Cntrctrs Chgs,4657,Replace cream vinyl with white reflective on alumium sign boards,06/04/2016,0000412497,250.00,Revenue,WOODSTOCK SIGNS,00039039
South Ribble Council,http://statistics.data.gov.uk/doc/local-authority/30UN,Regeneration,Other Misc,4851,"1 Noticeboards - 300 1100 x 810 plywood noticeboards with 6� x 4� postsBoards to",27/04/2016,0000413485,300.00,Revenue,WOODSTOCK SIGNS,00039039
South Ribble Council,http://statistics.data.gov.uk/doc/local-authority/30UN,HR & Communications,Training Expense-Course Fees,1408,OCCUPATIONAL HEALTH SERVICES PROVIDED JANUARY TO MARCH 2016,13/04/2016,0000412831,375.00,Revenue,WRIGHTINGTON WIGAN & LEIGH NHS FOUNDATION TRUST,131288
South Ribble Council,http://statistics.data.gov.uk/doc/local-authority/30UN,Healthy Communities,Other Misc,4851,STANDARD CONFERENCE TICKET - YOUTH SPORT TRUST 2016 CONFERENCE,20/04/2016,0000412804,300.00,Revenue,YOUTH SPORT DIRECT LTD,131249
